bitfinex-derivatives/quotes_SOLF0:USTF0_20251209
["timestamp","ask_amount","ask_price","bid_price","bid_amount"]
[1765260181129,202.65938036,132.22,132.17,3.1]
[1765260181328,3.20711061,132.2,132.17,3.1]
[1765260181929,3.26243452,132.2,132.17,3.15807472]
[1765260182535,6.86282391,132.2,132.17,3.15807472]
[1765260184541,0.05532391,132.2,132.17,3.15807472]
[1765260185033,194.13113162,132.22,132.18,3.1]
[1765260185730,194.13113162,132.22,132.18,9.9081]
[1765260186033,2.05066856,132.27,132.21,2.05066856]
[1765260186330,2.05066856,132.27,132.22,3.1]
[1765260186331,5.56989838,132.26,132.22,3.1]
[1765260186534,2.05066856,132.27,132.22,3.1]
[1765260186738,5.5716075,132.26,132.22,3.1]
[1765260186934,5.32352215,132.28,132.22,3.1]
[1765260187129,0.05356701,132.25,132.24,3.1]
[1765260187640,5.5713715,132.28,132.25,3.1]
[1765260187837,73.17226856,132.31,132.26,3.1]
[1765260188036,5.57065985,132.3,132.26,3.1]
[1765260188234,78.44018064,132.31,132.26,3.1]
[1765260188235,64.32,132.31,132.26,3.1]
[1765260188439,5.56885219,132.3,132.26,3.1]
[1765260188626,0.05168266,132.29,132.28,3.26]
[1765260190038,0.05168266,132.29,132.27,3.30853594]
[1765260209561,2.10235122,132.29,132.27,0.04853594]
[1765260210055,2.10235122,132.29,132.27,3.27853594]
[1765260214258,8.90515122,132.29,132.27,0.04853594]
[1765260214662,5.5062154,132.28,132.27,0.04853594]
[1765260219867,5.5062154,132.28,132.27,3.27853594]
[1765260220365,2.10235122,132.29,132.27,3.27853594]
[1765260220566,0.05168266,132.29,132.27,3.27853594]
[1765260222476,0.05168266,132.29,132.28,3.23]
[1765260225765,0.00168266,132.29,132.28,3.23]
[1765260225972,6.801,132.33,132.28,3.23]
[1765260225973,2.05066856,132.33,132.29,3.23]
[1765260226270,5.744321,132.32,132.29,3.23]
[1765260226469,5.744321,132.31,132.29,3.23]
[1765260226772,2.05066856,132.33,132.29,3.23]
[1765260226970,0.05347512,132.31,132.29,3.2881597]
[1765260228265,5.75939078,132.3,132.29,3.2881597]
[1765260231571,0.05347512,132.31,132.3,3.13]
[1765260236087,0.05347512,132.31,132.29,3.1881597]
[1765260236287,2.10414368,132.31,132.29,0.0581597]
[1765260236682,2.10414368,132.31,132.29,3.3681597]
[1765260237480,8.90584368,132.31,132.29,3.3681597]
[1765260238479,0.05347512,132.31,132.29,3.3681597]
[1765260241984,8.90594368,132.31,132.29,0.0581597]
[1765260242184,8.90594368,132.31,132.25,3.31]
[1765260242185,12.2670783,132.3,132.25,3.31]
[1765260242393,2.05066856,132.28,132.25,3.31]
[1765260243187,2.10535894,132.28,132.25,3.36642784]
[1765260243480,5.73963241,132.27,132.25,3.36642784]
[1765260243691,2.10535894,132.28,132.25,3.36642784]
[1765260243892,5.73964738,132.27,132.25,3.36642784]
[1765260244087,8.90865894,132.28,132.25,3.36642784]
[1765260244285,5.73949772,132.27,132.25,3.36642784]
[1765260244485,8.90865894,132.28,132.25,3.36642784]
[1765260244692,5.73930337,132.27,132.25,3.36642784]
[1765260244887,5.73930337,132.26,132.25,3.36642784]
[1765260245892,6.85799038,132.28,132.25,3.36642784]
[1765260246094,5.73885561,132.27,132.25,3.36642784]
[1765260246293,5.73700729,132.26,132.25,3.36642784]
[1765260246485,6.85799038,132.28,132.25,3.36642784]
[1765260246684,5.73669316,132.27,132.25,3.36642784]
[1765260246886,6.85799038,132.28,132.25,3.36642784]
[1765260246887,5.73663956,132.26,132.25,3.36642784]
[1765260248189,6.85799038,132.28,132.25,3.36642784]
[1765260248392,5.73762388,132.27,132.25,3.36642784]
[1765260248592,6.85799038,132.28,132.25,3.36642784]
[1765260248795,5.73860721,132.27,132.25,3.36642784]
[1765260248996,6.85799038,132.28,132.25,3.36642784]
[1765260249193,5.73812865,132.27,132.25,3.36642784]
[1765260249396,6.85799038,132.28,132.25,3.36642784]
[1765260249596,5.73791768,132.27,132.25,3.36642784]
[1765260249786,6.85799038,132.28,132.25,3.36642784]
[1765260249986,5.73791768,132.27,132.25,3.36642784]
[1765260250189,6.85799038,132.28,132.25,3.36642784]
[1765260250389,5.73729971,132.27,132.25,3.36642784]
[1765260250594,6.85799038,132.28,132.25,3.36642784]
[1765260250785,5.73622133,132.27,132.25,3.36642784]
[1765260250993,6.85799038,132.28,132.25,3.36642784]
[1765260251201,5.73620268,132.27,132.25,3.36642784]
[1765260251398,6.85799038,132.28,132.25,3.36642784]
[1765260251701,5.73608734,132.27,132.25,3.36642784]
[1765260251891,6.85799038,132.28,132.25,3.36642784]
[1765260252190,5.7361454,132.27,132.25,3.36642784]
[1765260252486,6.85799038,132.28,132.25,3.36642784]
[1765260252689,5.73604646,132.27,132.25,3.36642784]
[1765260252893,6.85799038,132.28,132.25,3.36642784]
[1765260253095,5.73604646,132.27,132.25,3.36642784]
[1765260253396,6.85799038,132.28,132.25,3.36642784]
[1765260253596,5.71980767,132.27,132.25,3.36642784]
[1765260253796,6.85799038,132.28,132.25,3.36642784]
[1765260253987,5.71980767,132.27,132.25,3.36642784]
[1765260254191,6.85799038,132.28,132.25,3.36642784]
[1765260254393,5.71977648,132.27,132.25,3.36642784]
[1765260254600,6.85799038,132.28,132.25,3.36642784]
[1765260254801,5.71977648,132.27,132.25,3.36642784]
[1765260254992,6.85799038,132.28,132.25,3.36642784]
[1765260255193,5.71977648,132.27,132.25,3.36642784]
[1765260255393,6.85799038,132.28,132.25,3.36642784]
[1765260255594,5.71959983,132.27,132.25,3.36642784]
[1765260255794,6.85799038,132.28,132.25,3.36642784]
[1765260255994,5.71959979,132.27,132.25,3.36642784]
[1765260256198,6.8038,132.27,132.25,0.05642784]
[1765260256501,105.8546,132.25,132.17,3.31]
[1765260256702,85.46975733,132.24,132.17,3.31]
[1765260256898,17.98807459,132.23,132.17,3.31]
[1765260257098,11.44282805,132.22,132.17,3.31]
[1765260257298,74.4765847,132.24,132.17,3.31]
[1765260257299,11.44282805,132.21,132.17,3.31]
[1765260257598,0.05133904,132.2,132.19,3.31]
[1765260257797,0.05764044,132.21,132.19,3.31]
[1765260265908,11.42632291,179.58,132.21,3.33]
[1765260265909,6.99490196,132.29,132.21,3.33]
[1765260266102,11.32056931,132.28,132.21,3.33]
[1765260266308,11.32056931,132.27,132.21,3.33]
[1765260266507,5.69409753,132.26,132.21,3.33]
[1765260266708,5.62641985,132.28,132.21,3.33]
[1765260266910,0.05659277,132.26,132.24,3.33]
[1765260267107,0.05659277,132.26,132.24,3.38743398]
[1765260287315,0.05659277,132.26,132.25,3.33]
[1765260304742,67.50168274,132.3,132.25,3.33]
[1765260304743,64.3,132.3,132.25,3.33]
[1765260304943,11.19567274,132.29,132.25,3.33]
[1765260305143,5.70570526,132.28,132.25,3.33]
[1765260305340,71.1023,132.3,132.25,3.33]
[1765260305645,11.25638551,132.29,132.25,3.33]
[1765260305846,5.70934069,132.28,132.25,3.33]
[1765260306053,0.05411565,132.29,132.25,3.33]
[1765260306240,5.71103437,132.28,132.25,3.33]
[1765260306547,0.05411565,132.29,132.25,3.33]
[1765260306737,5.71091271,132.28,132.25,3.33]
[1765260306934,0.05411565,132.29,132.25,3.33]
[1765260307245,5.71092903,132.28,132.25,3.33]
[1765260307441,0.05411565,132.29,132.25,3.33]
[1765260307641,5.71263937,132.28,132.25,3.33]
[1765260307941,0.05411565,132.29,132.25,3.33]
[1765260308133,5.71263937,132.28,132.25,3.33]
[1765260308334,5.71263937,132.27,132.25,3.33]
[1765260308542,0.05411565,132.29,132.25,3.33]
[1765260308746,5.71412952,132.28,132.25,3.33]
[1765260308940,5.71412952,132.27,132.25,3.33]
[1765260309144,0.05411565,132.29,132.25,3.33]
[1765260309346,5.7156546,132.28,132.25,3.33]
[1765260309546,0.05411565,132.29,132.25,3.33]
[1765260309746,5.71534891,132.28,132.25,3.33]
[1765260309947,0.05411565,132.29,132.25,3.33]
[1765260310140,5.71562358,132.28,132.25,3.33]
[1765260310340,0.05411565,132.29,132.25,3.33]
[1765260310542,5.71848529,132.28,132.25,3.33]
[1765260310749,0.05411565,132.29,132.25,3.33]
[1765260310950,5.71810018,132.28,132.25,3.33]
[1765260311248,0.05411565,132.29,132.25,3.33]
[1765260311448,5.7174964,132.28,132.25,3.33]
[1765260311651,0.05411565,132.29,132.25,3.33]
[1765260311849,5.71636626,132.28,132.25,3.33]
[1765260312039,0.05411565,132.29,132.25,3.33]
[1765260312236,0.05411565,132.29,132.26,3.37]
[1765260314348,2.04817918,132.28,132.26,3.37]
[1765260318358,6.85691565,132.29,132.26,3.37]
[1765260318854,5.43468735,132.28,132.26,3.37]
[1765260319054,6.85691565,132.29,132.26,3.37]
[1765260319251,5.43468547,132.28,132.26,3.37]
[1765260319448,6.85691565,132.29,132.26,3.37]
[1765260319650,5.43480026,132.28,132.26,3.37]
[1765260319843,6.85691565,132.29,132.26,3.37]
[1765260320043,5.43479688,132.28,132.26,3.37]
[1765260320243,6.85691565,132.29,132.26,3.37]
[1765260320441,5.43493875,132.28,132.26,3.37]
[1765260320641,6.85691565,132.29,132.26,3.37]
[1765260320849,5.43493706,132.28,132.26,3.37]
[1765260321055,0.05411565,132.29,132.26,3.37]
[1765260321656,9.04308114,132.32,132.28,3.39]
[1765260321857,5.42094374,132.31,132.28,3.39]
[1765260322159,9.04308114,132.32,132.28,3.39]
[1765260322361,5.41958137,132.31,132.28,3.39]
[1765260322563,80.12398114,132.33,132.28,3.39]
[1765260322761,0.03251815,132.32,132.29,3.44730625]
[1765260324448,0.03251815,132.32,132.29,10.24980625]
[1765260324657,0.03251815,132.32,132.3,3.39]
[1765260325057,179.36663595,132.37,132.31,3.39]
[1765260325058,71.27490196,132.37,132.31,3.39]
[1765260325258,11.10004337,132.36,132.31,3.39]
[1765260325458,5.68458641,132.35,132.32,3.39]
[1765260325659,5.68458641,132.34,132.32,3.39]
[1765260325860,5.41262333,132.36,132.32,3.39]
[1765260326050,13.79310196,132.38,132.34,3.39]
[1765260326051,5.68157558,132.35,132.34,3.39]
[1765260327354,9.04308114,132.39,132.34,3.39]
[1765260327560,9.04308114,132.39,132.33,0.05659615]
[1765260327561,11.08156747,132.38,132.36,3.39]
[1765260327761,5.67530548,132.37,132.36,3.39]
[1765260328072,5.67530548,132.37,132.35,0.05120399]
[1765260328365,5.40310744,132.38,132.35,3.44120399]
[1765260328565,7.7201745,132.37,132.35,3.44120399]
[1765260328767,2.04817918,132.37,132.35,3.44120399]
[1765260328965,5.40310917,132.38,132.35,3.44120399]
[1765260329264,7.7201745,132.37,132.35,3.44120399]
[1765260329465,6.7983,132.38,132.35,3.44120399]
[1765260329666,5.66924523,132.37,132.35,3.44120399]
[1765260329866,8.84647918,132.38,132.35,3.44120399]
[1765260330059,5.66924523,132.37,132.35,3.44120399]
[1765260330260,8.84647918,132.38,132.35,3.44120399]
[1765260330568,5.6669346,132.37,132.35,3.44120399]
[1765260330865,8.84647918,132.38,132.35,3.44120399]
[1765260331068,5.6669346,132.37,132.35,3.44120399]
[1765260331371,8.84647918,132.38,132.35,3.44120399]
[1765260331562,5.66498203,132.37,132.35,3.44120399]
[1765260331860,8.84647918,132.38,132.35,3.44120399]
[1765260332159,5.66498203,132.37,132.35,3.44120399]
[1765260332355,8.84647918,132.38,132.35,3.44120399]
[1765260335970,12.18918211,132.4,132.35,3.44120399]
[1765260336168,5.65919904,132.39,132.35,3.44120399]
[1765260336373,8.84537918,132.4,132.35,3.44120399]
[1765260336568,5.65790297,132.39,132.35,3.44120399]
[1765260336768,8.84537918,132.4,132.35,3.44120399]
[1765260336971,5.65790101,132.39,132.35,3.44120399]
[1765260337165,8.84537918,132.4,132.35,3.44120399]
[1765260337365,5.65671462,132.39,132.35,3.44120399]
[1765260337561,71.69741525,132.41,132.36,3.39]
[1765260337771,6.7963,132.42,132.36,3.39]
[1765260337972,71.69741525,132.44,132.39,3.39]
[1765260338274,71.0552,132.44,132.39,3.39]
[1765260338665,71.0552,132.44,132.4,3.39]
[1765260338976,71.0552,132.44,132.42,3.39]
[1765260339167,64.26,132.44,132.42,3.39]
[1765260339369,7.6991467,132.45,132.42,3.39]
[1765260339575,6.7941,132.46,132.42,3.39]
[1765260340976,6.7941,132.46,132.41,0.05626977]
[1765260340977,2.04817918,132.43,132.41,0.05626977]
[1765260342570,8.84387918,132.43,132.41,0.05626977]
[1765260346377,2.04817918,132.43,132.34,64.24]
[1765260346577,2.04817918,132.41,132.35,3.39]
[1765260347087,8.84487918,132.41,132.36,3.39]
[1765260347476,0.04901816,132.4,132.38,3.39]
[1765260361990,2.09719734,132.4,132.37,0.05166112]
[1765260362377,2.09719734,132.4,132.33,3.12]
[1765260362378,8.84647918,132.38,132.33,3.12]
[1765260362582,2.04817918,132.36,132.33,3.12]
[1765260363392,2.10408764,132.36,132.33,3.16922958]
[1765260366698,0.05590846,132.36,132.33,3.16922958]
[1765260367207,6.85520846,132.36,132.33,0.04922958]
[1765260367496,6.85520846,132.36,132.33,3.19922958]
[1765260368697,82.13404266,132.35,132.33,0.04922958]
[1765260368899,5.67290144,132.34,132.33,0.04922958]
[1765260370802,8.87015456,132.34,132.33,0.04922958]
[1765260370991,14.29046295,132.34,132.33,0.04922958]
[1765260371295,121.5917448,132.34,132.28,3.15]
[1765260371491,3.19725312,132.32,132.28,3.15]
[1765260372298,0.05141476,132.31,132.29,0.05073489]
[1765260372795,0.05141476,132.31,132.29,3.20073489]
[1765260376098,0.05141476,132.31,132.26,3.15]
[1765260376897,6.8023,132.3,132.26,3.15]
[1765260377702,6.8023,132.3,132.28,3.15]
[1765260377903,6.85080598,132.3,132.28,3.15]
[1765260382293,0.04850598,132.3,132.27,0.04779892]
[1765260382502,71.0628,132.29,132.27,0.04779892]
[1765260384407,6.8045,132.26,132.22,3.25]
[1765260385502,6.85418708,132.25,132.23,0.05580749]
[1765260387004,6.85418708,132.25,132.23,3.30580749]
[1765260388209,0.04928708,132.25,132.23,3.30580749]
[1765260397909,0.04928708,132.25,132.23,0.05580749]
[1765260399118,74.3313402,132.25,132.23,0.05580749]
[1765260399619,5.64067818,132.24,132.19,3.25]
[1765260399812,173.33275312,132.25,132.19,3.25]
[1765260400317,6.8063,132.22,132.19,3.25]
[1765260400621,0.05775694,132.22,132.19,3.30249886]
[1765260401313,0.05775694,132.22,132.19,6.49975198]
[1765260401623,0.05775694,132.22,132.2,3.25]
[1765260401818,0.05775694,132.22,132.2,10.0571]
[1765260402015,64.28,132.28,132.21,3.25]
[1765260402911,0.05497772,132.26,132.24,3.25]
[1765260411925,6.85937772,132.26,132.23,0.05662618]
[1765260412129,5.66786106,132.25,132.23,3.27662618]
[1765260412427,0.05497772,132.26,132.23,3.27662618]
[1765260412626,12.47495573,132.25,132.23,3.27662618]
[1765260412928,6.8048,132.25,132.23,3.27662618]
[1765260417827,5.6770529,132.24,132.23,3.27662618]
[1765260418225,6.8048,132.25,132.23,3.27662618]
[1765260418927,6.8048,132.25,132.23,0.05662618]
[1765260419127,69.97731217,132.24,132.23,0.05662618]
[1765260419831,75.403195,132.24,132.23,0.05662618]
[1765260420227,6.8067,132.22,132.18,3.22]
[1765260420429,10.00395312,132.22,132.18,3.22]
[1765260421135,6.8069,132.21,132.18,3.22]
[1765260421439,6.85777036,132.21,132.18,3.26911667]
[1765260421638,6.8074,132.2,132.18,0.04911667]
[1765260421830,69.97757521,132.19,132.18,0.04911667]
[1765260422330,69.97757521,132.19,132.15,3.22]
[1765260422531,64.3,132.19,132.15,3.22]
[1765260422929,71.108,132.19,132.15,3.22]
[1765260423234,0.05479781,132.18,132.16,0.05412325]
[1765260423435,0.05479781,132.18,132.16,3.27412325]
[1765260425238,6.86329781,132.18,132.16,0.05412325]
[1765260425735,6.86329781,132.18,132.16,3.37412325]
[1765260426138,6.86329781,132.18,132.16,0.05412325]
[1765260428735,2.05200023,132.17,132.16,0.05412325]
[1765260440664,6.8094,132.16,132.13,3.32]
[1765260440961,66.37200023,132.15,132.13,3.32]
[1765260441763,66.42005374,132.15,132.13,3.37426341]
[1765260443465,73.23005374,132.15,132.13,3.37426341]
[1765260446363,73.23005374,132.15,132.13,0.05426341]
[1765260449171,6.8115,132.12,132.1,3.24]
[1765260450275,71.20722369,132.12,132.1,3.29782862]
[1765260458983,0.05572369,132.12,132.1,3.29782862]
[1765260465771,0.05572369,132.12,132.1,11.29782862]
[1765260465972,0.05572369,132.12,132.11,3.24]
[1765260472280,0.05572369,132.12,132.1,3.18782862]
[1765260472877,2.05200023,132.11,132.1,0.05782862]
[1765260474577,7.74748997,132.11,132.1,0.05782862]
[1765260476182,5.69548974,132.11,132.1,3.18782862]
[1765260481291,7.74748997,132.11,132.1,0.05782862]
[1765260481788,5.69548974,132.11,132.1,3.18782862]
[1765260482183,0.05572369,132.12,132.1,3.18782862]
[1765260487195,13.78339953,132.18,132.11,3.13]
[1765260487397,11.15420564,132.17,132.12,3.13]
[1765260487594,5.69775217,132.16,132.12,3.13]
[1765260487794,5.69775217,132.15,132.12,3.13]
[1765260487995,15.83539976,132.18,132.12,3.13]
[1765260488191,0.05657306,132.16,132.14,3.28996337]
[1765260488395,5.69814623,132.15,132.14,3.28996337]
[1765260490091,0.05657306,132.16,132.14,3.28996337]
[1765260499712,0.05657306,132.16,132.14,10.10016337]
[1765260500016,0.05657306,132.16,132.15,3.22]
[1765260500509,6.8076,132.2,132.15,3.22]
[1765260500812,5.69772854,132.19,132.15,3.22]
[1765260501011,6.8076,132.2,132.15,3.22]
[1765260501208,5.69614924,132.19,132.15,10.0297]
[1765260501399,6.8076,132.2,132.16,3.22]
[1765260501605,6.8076,132.2,132.15,6.8097]
[1765260501606,0.05426596,132.18,132.17,3.26787344]
[1765260501810,0.0492816,132.19,132.17,3.26787344]
[1765260506308,0.0492816,132.19,132.17,10.07647344]
[1765260506509,0.0492816,132.19,132.18,3.22]
[1765260511223,6.8572816,132.19,132.17,0.04787344]
[1765260511612,8.88658742,132.18,132.13,3.22]
[1765260511812,3.2064042,132.18,132.13,3.22]
[1765260512616,6.809,132.17,132.14,3.27264816]
[1765260512816,6.86016869,132.17,132.14,3.27264816]
[1765260513418,6.86016869,132.17,132.14,0.05264816]
[1765260514225,6.86016869,132.17,132.14,3.27264816]
[1765260514919,6.86016869,132.17,132.14,0.05264816]
[1765260515924,6.86016869,132.17,132.14,3.27264816]
[1765260516725,0.05116869,132.17,132.14,3.27264816]
[1765260517428,0.05116869,132.17,132.14,0.05264816]
[1765260520424,0.05116869,132.17,132.14,3.27264816]
[1765260521726,0.05116869,132.17,132.14,0.05264816]
[1765260522028,5.68678027,132.16,132.14,0.05264816]
[1765260522229,6.86016869,132.17,132.14,0.05264816]
[1765260522428,5.68787487,132.16,132.14,0.05264816]
[1765260522627,6.86016869,132.17,132.14,0.05264816]
[1765260522829,5.6878734,132.16,132.14,0.05264816]
[1765260523031,6.86016869,132.17,132.14,0.05264816]
[1765260523331,5.68913861,132.16,132.14,0.05264816]
[1765260523530,6.86016869,132.17,132.14,0.05264816]
[1765260523733,5.68840122,132.16,132.14,0.05264816]
[1765260523928,6.86016869,132.17,132.14,0.05264816]
[1765260524129,5.68839868,132.16,132.14,3.27264816]
[1765260524334,0.05116869,132.17,132.14,3.27264816]
[1765260528632,0.05116869,132.17,132.14,10.08284816]
[1765260528827,0.05116869,132.17,132.15,3.24]
[1765260533835,0.05116869,132.17,132.15,10.0497]
[1765260534037,0.05116869,132.17,132.16,3.24]
[1765260534232,5.74869884,132.17,132.16,3.24]
[1765260539034,5.74934737,132.17,132.16,3.24]
[1765260540643,0.05116869,132.17,132.16,3.24]
[1765260546947,71.31479953,132.21,132.16,3.24]
[1765260547151,71.31479953,132.21,132.18,3.24]
[1765260547152,5.69866496,132.2,132.18,3.24]
[1765260547350,64.34,132.21,132.18,3.24]
[1765260547550,5.69985527,132.2,132.18,3.24]
[1765260547751,64.34,132.21,132.18,3.24]
[1765260547946,5.70058557,132.2,132.18,3.24]
[1765260548153,64.39771711,132.21,132.18,3.29756261]
[1765260548456,5.70055433,132.2,132.18,3.29756261]
[1765260548651,64.39771711,132.21,132.18,3.29756261]
[1765260548847,5.70042106,132.2,132.18,3.29756261]
[1765260549053,64.39771711,132.21,132.18,3.29756261]
[1765260549253,5.70038154,132.2,132.18,3.29756261]
[1765260549456,64.39771711,132.21,132.18,3.29756261]
[1765260549654,5.70023381,132.2,132.18,3.29756261]
[1765260549855,64.39771711,132.21,132.18,3.29756261]
[1765260550156,5.70023381,132.2,132.18,3.29756261]
[1765260550353,64.39771711,132.21,132.18,3.29756261]
[1765260550552,5.70001481,132.2,132.18,3.29756261]
[1765260550754,66.44853139,132.21,132.18,3.29756261]
[1765260550953,5.69995757,132.2,132.18,3.29756261]
[1765260551155,66.44853139,132.21,132.18,3.29756261]
[1765260551358,5.70049143,132.2,132.18,3.29756261]
[1765260551552,66.44853139,132.21,132.18,3.29756261]
[1765260551859,5.70029896,132.2,132.18,3.29756261]
[1765260552055,66.44853139,132.21,132.18,3.29756261]
[1765260552354,5.70092337,132.2,132.18,3.29756261]
[1765260552554,66.44853139,132.21,132.18,3.29756261]
[1765260552751,5.70070911,132.2,132.18,3.29756261]
[1765260552955,66.44853139,132.21,132.18,3.29756261]
[1765260553158,5.70070911,132.2,132.18,3.29756261]
[1765260553352,66.44853139,132.21,132.18,3.29756261]
[1765260553554,5.68640737,132.2,132.18,3.29756261]
[1765260553754,66.44853139,132.21,132.18,3.29756261]
[1765260553956,5.68640737,132.2,132.18,3.29756261]
[1765260554157,66.44853139,132.21,132.18,3.29756261]
[1765260554358,5.68710687,132.2,132.18,3.29756261]
[1765260554557,66.44853139,132.21,132.18,3.29756261]
[1765260554758,5.68674602,132.2,132.18,3.29756261]
[1765260554960,66.44853139,132.21,132.18,3.29756261]
[1765260555162,5.68674602,132.2,132.18,3.29756261]
[1765260555349,66.44853139,132.21,132.18,3.29756261]
[1765260555553,5.68765673,132.2,132.18,3.29756261]
[1765260555753,66.44853139,132.21,132.18,3.29756261]
[1765260555953,5.68765673,132.2,132.18,3.29756261]
[1765260556154,66.44853139,132.21,132.18,3.29756261]
[1765260556457,5.68862754,132.2,132.18,3.29756261]
[1765260556662,66.44853139,132.21,132.18,3.29756261]
[1765260556862,5.68826984,132.2,132.18,3.29756261]
[1765260557054,66.44853139,132.21,132.18,3.29756261]
[1765260557361,5.68782375,132.2,132.18,3.29756261]
[1765260557562,66.44853139,132.21,132.18,3.29756261]
[1765260557758,5.68752228,132.2,132.18,3.29756261]
[1765260557963,66.44853139,132.21,132.18,3.29756261]
[1765260558157,5.68783986,132.2,132.18,3.29756261]
[1765260558358,66.44853139,132.21,132.18,3.29756261]
[1765260558657,5.68729483,132.2,132.18,3.29756261]
[1765260558858,66.44853139,132.21,132.18,3.29756261]
[1765260559055,5.68729483,132.2,132.18,3.29756261]
[1765260559255,66.44853139,132.21,132.18,3.29756261]
[1765260559550,5.68719633,132.2,132.18,3.29756261]
[1765260559751,66.44853139,132.21,132.18,3.29756261]
[1765260559959,5.68719759,132.2,132.18,3.29756261]
[1765260560158,66.44853139,132.21,132.18,3.29756261]
[1765260560359,5.68719578,132.2,132.18,3.29756261]
[1765260560549,66.44853139,132.21,132.18,3.29756261]
[1765260560751,5.68690707,132.2,132.18,3.29756261]
[1765260560952,64.39771711,132.21,132.18,3.29756261]
[1765260561151,5.68690707,132.2,132.18,3.29756261]
[1765260561455,66.44853139,132.21,132.18,3.29756261]
[1765260561655,5.68660571,132.2,132.18,3.29756261]
[1765260561951,66.44853139,132.21,132.18,3.29756261]
[1765260562152,5.68660571,132.2,132.18,3.29756261]
[1765260562356,66.44853139,132.21,132.18,3.29756261]
[1765260562666,5.68638437,132.2,132.18,3.29756261]
[1765260562856,0.05771711,132.21,132.18,3.29756261]
[1765260564362,0.05771711,132.21,132.19,3.11]
[1765260574774,0.05771711,132.21,132.19,9.9177]
[1765260574969,0.05771711,132.21,132.2,3.11]
[1765260578882,5.74336597,132.21,132.2,3.11]
[1765260581883,0.05771711,132.21,132.2,3.11]
[1765260583285,5.74646647,132.21,132.2,3.11]
[1765260583682,0.05771711,132.21,132.2,3.11]
[1765260586282,66.37081428,132.25,132.22,3.11]
[1765260586480,5.6845444,132.24,132.22,3.11]
[1765260586680,5.6845444,132.23,132.22,3.11]
[1765260587887,0.05455068,132.24,132.22,3.11]
[1765260597692,2.05081428,132.23,132.21,0.05089341]
[1765260597887,5.68203359,132.22,132.21,0.05089341]
[1765260598095,11.19685782,132.22,132.21,0.05089341]
[1765260598297,5.68203359,132.22,132.21,3.13089341]
[1765260603298,11.20377521,132.22,132.21,3.13089341]
[1765260603999,5.68203359,132.22,132.21,3.13089341]
[1765260610407,0.00203359,132.22,132.21,3.13089341]
[1765260610605,0.05455068,132.24,132.21,3.13089341]
[1765260611710,0.05455068,132.24,132.23,3.37]
[1765260612608,5.48556495,132.28,132.24,3.37]
[1765260612800,5.48556495,132.27,132.24,3.37]
[1765260613005,78.07779953,132.29,132.24,3.37]
[1765260613209,5.48539121,132.28,132.25,3.37]
[1765260613409,78.07779953,132.29,132.25,3.37]
[1765260613410,71.103,132.29,132.25,3.37]
[1765260613712,5.53304293,132.28,132.26,3.42153154]
[1765260613909,0.04887477,132.28,132.26,3.42153154]
[1765260621916,8.63443382,132.27,132.21,3.4]
[1765260622110,3.20131784,132.25,132.21,3.4]
[1765260622508,5.63865997,132.24,132.21,3.4]
[1765260622707,3.20131784,132.25,132.21,3.4]
[1765260622911,5.68787389,132.24,132.22,0.05312275]
[1765260623116,0.0492132,132.24,132.22,3.45312275]
[1765260629722,6.8546132,132.24,132.22,3.45312275]
[1765260630934,6.8546132,132.24,132.22,0.05312275]
[1765260631118,6.8546132,132.24,132.2,3.4]
[1765260631119,6.8063,132.22,132.2,3.4]
[1765260631720,6.8063,132.22,132.18,3.4]
[1765260631920,5.64053808,132.21,132.18,3.4]
[1765260632228,0.05742765,132.21,132.18,3.45487991]
[1765260640426,0.05742765,132.21,132.19,6.8076]
[1765260640631,0.05742765,132.21,132.2,3.4]
[1765260645944,5.63403448,132.24,132.21,3.4]
[1765260646143,16.98011737,132.27,132.21,3.4]
[1765260646337,11.11029788,132.26,132.21,3.4]
[1765260646537,11.11029788,132.25,132.21,3.4]
[1765260646740,5.63376079,132.24,132.21,3.4]
[1765260646941,0.05750405,132.24,132.21,3.45264039]
[1765260649347,0.05750405,132.24,132.21,10.25914039]
[1765260649543,0.05750405,132.24,132.22,3.29]
[1765260662460,0.05750405,132.24,132.21,3.35264039]
[1765260662660,5.63914266,132.23,132.21,0.05264039]
[1765260662859,5.63864685,132.22,132.21,0.05264039]
[1765260663362,11.12142926,132.22,132.21,0.05264039]
[1765260672674,13.17218353,132.22,132.21,0.05264039]
[1765260675568,105.8918,132.2,132.14,3.3]
[1765260675865,2.05075427,132.18,132.14,3.3]
[1765260676772,0.05797908,132.17,132.16,3.3]